[Event "*** Titled Tuesday Blitz"]
[Site "Chess.com"]
[Date "2020.05.12"]
[Round "7"]
[White "Kobalia"]
[Black "BogdanBelyakov89"]
[Result "0-1"]
[WhiteElo "2768"]
[BlackElo "2574"]
[TimeControl "180+1"]
[EndTime "11:17:01 PDT"]
[Termination "BogdanBelyakov89 won on time"]

1. e4 {[%clk 0:03:00.9]} 1... e5 {[%clk 0:02:59.7]} 2. Nf3 {[%clk 0:03:00.5]}
2... Nc6 {[%clk 0:03:00.1]} 3. Bb5 {[%clk 0:03:00.5]} 3... Nf6 {[%clk 0:03:00]}
4. d3 {[%clk 0:02:59.8]} 4... Bc5 {[%clk 0:02:59.7]} 5. Ba4 {[%clk 0:02:59.9]}
5... O-O {[%clk 0:02:56.6]} 6. O-O {[%clk 0:02:59.8]} 6... d6 {[%clk 0:02:53.6]}
7. c3 {[%clk 0:02:59.8]} 7... a6 {[%clk 0:02:51.6]} 8. d4 {[%clk 0:02:51.5]}
8... Ba7 {[%clk 0:02:48.9]} 9. Bxc6 {[%clk 0:02:11.5]} 9... bxc6 {[%clk
0:02:48.4]} 10. Re1 {[%clk 0:02:11.5]} 10... exd4 {[%clk 0:02:36.3]} 11. Nxd4
{[%clk 0:02:01.5]} 11... Qe8 {[%clk 0:02:19.1]} 12. Bg5 {[%clk 0:01:59.8]} 12...
Ng4 {[%clk 0:02:18.3]} 13. Nd2 {[%clk 0:01:49.6]} 13... Ne5 {[%clk 0:01:57.4]}
14. Qc2 {[%clk 0:01:46.6]} 14... c5 {[%clk 0:01:53.9]} 15. N4f3 {[%clk
0:01:44.3]} 15... Nxf3+ {[%clk 0:01:50.4]} 16. Nxf3 {[%clk 0:01:43.6]} 16... Bg4
{[%clk 0:01:50.3]} 17. Qd3 {[%clk 0:01:31]} 17... Qb5 {[%clk 0:01:48.6]} 18. c4
{[%clk 0:01:13.8]} 18... Qc6 {[%clk 0:01:43.5]} 19. h3 {[%clk 0:01:07.5]} 19...
Bh5 {[%clk 0:01:42.8]} 20. Bd2 {[%clk 0:00:41.8]} 20... Rfe8 {[%clk 0:01:39.6]}
21. Bc3 {[%clk 0:00:36.6]} 21... f6 {[%clk 0:01:34.9]} 22. Nd2 {[%clk
0:00:35.7]} 22... Re7 {[%clk 0:01:31.1]} 23. Nf1 {[%clk 0:00:35.2]} 23... Rae8
{[%clk 0:01:29.8]} 24. f3 {[%clk 0:00:35.3]} 24... Bf7 {[%clk 0:01:14.4]} 25.
Ne3 {[%clk 0:00:34.5]} 25... Qa4 {[%clk 0:01:11.4]} 26. b3 {[%clk 0:00:33.9]}
26... Qc6 {[%clk 0:01:07.2]} 27. Kh1 {[%clk 0:00:33]} 27... Bb8 {[%clk
0:00:56.6]} 28. g4 {[%clk 0:00:30.8]} 28... Qb7 {[%clk 0:00:54.8]} 29. Rg1
{[%clk 0:00:30]} 29... Bg6 {[%clk 0:00:52.2]} 30. Nf5 {[%clk 0:00:29.1]} 30...
Rd7 {[%clk 0:00:45.9]} 31. h4 {[%clk 0:00:27.8]} 31... c6 {[%clk 0:00:45.6]} 32.
h5 {[%clk 0:00:26.6]} 32... Bxf5 {[%clk 0:00:45.4]} 33. gxf5 {[%clk 0:00:25.9]}
33... d5 {[%clk 0:00:44.8]} 34. Bxf6 {[%clk 0:00:24.8]} 34... dxe4 {[%clk
0:00:44.2]} 35. Qc3 {[%clk 0:00:22.5]} 35... Kf8 {[%clk 0:00:30.2]} 36. Bh4
{[%clk 0:00:11.5]} 36... Be5 {[%clk 0:00:29.8]} 37. Qc2 {[%clk 0:00:08]} 37...
Bxa1 {[%clk 0:00:29.5]} 38. Rxa1 {[%clk 0:00:07.6]} 38... Qc7 {[%clk 0:00:27.9]}
39. Qg2 {[%clk 0:00:04.5]} 39... Qf4 {[%clk 0:00:26.8]} 40. Bg3 {[%clk
0:00:02.6]} 40... Qxf3 {[%clk 0:00:27]} 41. Qxf3 {[%clk 0:00:02.7]} 41... exf3
{[%clk 0:00:27.9]} 42. Rf1 {[%clk 0:00:03.1]} 42... Rd3 {[%clk 0:00:26.9]} 43.
Bh4 {[%clk 0:00:01.5]} 43... Re2 {[%clk 0:00:25.7]} 44. f6 {[%clk 0:00:01.4]}
44... gxf6 {[%clk 0:00:25.6]} 45. Bxf6 {[%clk 0:00:01.6]} 45... Rxa2 {[%clk
0:00:25.5]} 46. h6 {[%clk 0:00:01.5]} 46... Kf7 {[%clk 0:00:25.7]} 47. Bg7
{[%clk 0:00:01.4]} 47... Rxb3 {[%clk 0:00:23.5]} 0-1

[Event "*** Titled Tuesday Blitz"]
[Site "Chess.com"]
[Date "2020.05.12"]
[Round "7"]
[White "rakshi2005"]
[Black "FGHSMN"]
[Result "0-1"]
[WhiteElo "2276"]
[BlackElo "2495"]
[TimeControl "180+1"]
[EndTime "11:17:01 PDT"]
[Termination "FGHSMN won by resignation"]

1. e4 {[%clk 0:03:00.9]} 1... c5 {[%clk 0:02:59.4]} 2. Nf3 {[%clk 0:03:00.4]}
2... d6 {[%clk 0:02:59.4]} 3. d4 {[%clk 0:02:57.8]} 3... cxd4 {[%clk 0:03:00.3]}
4. Nxd4 {[%clk 0:02:57.4]} 4... Nf6 {[%clk 0:03:00.8]} 5. Nc3 {[%clk 0:02:57.7]}
5... a6 {[%clk 0:03:00.6]} 6. Bg5 {[%clk 0:02:57.7]} 6... e6 {[%clk 0:02:59.8]}
7. f4 {[%clk 0:02:55.4]} 7... Qb6 {[%clk 0:02:59.4]} 8. Qd3 {[%clk 0:02:55]}
8... Qxb2 {[%clk 0:02:54.6]} 9. Rb1 {[%clk 0:02:54.9]} 9... Qa3 {[%clk
0:02:54.5]} 10. f5 {[%clk 0:02:55.2]} 10... Qa5 {[%clk 0:02:43]} 11. Bd2 {[%clk
0:02:30.9]} 11... Qc7 {[%clk 0:02:37.7]} 12. fxe6 {[%clk 0:02:29.2]} 12... fxe6
{[%clk 0:02:35.2]} 13. Be2 {[%clk 0:02:24.7]} 13... Be7 {[%clk 0:02:29.2]} 14.
Qg3 {[%clk 0:02:11]} 14... O-O {[%clk 0:02:19]} 15. O-O {[%clk 0:01:33.6]} 15...
Qc5 {[%clk 0:02:10.6]} 16. Qe3 {[%clk 0:01:32.1]} 16... Nc6 {[%clk 0:01:32]} 17.
Nxc6 {[%clk 0:01:26.7]} 17... Qxe3+ {[%clk 0:01:28.8]} 18. Bxe3 {[%clk
0:01:26.5]} 18... bxc6 {[%clk 0:01:28.8]} 19. e5 {[%clk 0:01:26.6]} 19... dxe5
{[%clk 0:01:26.5]} 20. Na4 {[%clk 0:01:21.3]} 20... Nd5 {[%clk 0:01:21.8]} 21.
Bc5 {[%clk 0:01:17.7]} 21... Bxc5+ {[%clk 0:01:10.3]} 22. Nxc5 {[%clk
0:01:16.9]} 22... Rxf1+ {[%clk 0:01:04.5]} 23. Rxf1 {[%clk 0:01:13.2]} 23... Rb8
{[%clk 0:00:57.8]} 24. c4 {[%clk 0:01:00.1]} 24... Nf6 {[%clk 0:00:48.7]} 25.
Rd1 {[%clk 0:00:57.1]} 25... Kf7 {[%clk 0:00:47.6]} 26. Bf3 {[%clk 0:00:50.2]}
26... Ke7 {[%clk 0:00:41.5]} 27. Bxc6 {[%clk 0:00:48.4]} 27... Rb2 {[%clk
0:00:41]} 28. a4 {[%clk 0:00:42.6]} 28... Rc2 {[%clk 0:00:39]} 29. Nd3 {[%clk
0:00:24.3]} 29... Rxc4 {[%clk 0:00:28.7]} 30. Nxe5 {[%clk 0:00:22.9]} 30... Rc5
{[%clk 0:00:26.2]} 31. Re1 {[%clk 0:00:22.8]} 31... Kd6 {[%clk 0:00:25]} 32. Nf3
{[%clk 0:00:07.7]} 32... Rxc6 {[%clk 0:00:24.3]} 33. Rd1+ {[%clk 0:00:07.6]}
33... Nd5 {[%clk 0:00:23.9]} 34. Nd4 {[%clk 0:00:07.5]} 34... Rc4 {[%clk
0:00:22.4]} 35. Ne2 {[%clk 0:00:06.1]} 35... Rxa4 {[%clk 0:00:21.7]} 36. Ng3
{[%clk 0:00:04.8]} 36... Bd7 {[%clk 0:00:20.1]} 37. h3 {[%clk 0:00:03.9]} 37...
Ke7 {[%clk 0:00:20.3]} 38. Kh2 {[%clk 0:00:04.5]} 38... a5 {[%clk 0:00:20.3]}
39. Rf1 {[%clk 0:00:05.4]} 39... Ra2 {[%clk 0:00:19.6]} 40. Nh5 {[%clk
0:00:06.3]} 40... Ne3 {[%clk 0:00:17.6]} 41. Rf3 {[%clk 0:00:06.2]} 41... Rxg2+
{[%clk 0:00:16.6]} 42. Kh1 {[%clk 0:00:06.5]} 42... Bc6 {[%clk 0:00:16.7]} 43.
Rxe3 {[%clk 0:00:05.5]} 43... Re2+ {[%clk 0:00:16.2]} 0-1

[Event "*** Titled Tuesday Blitz"]
[Site "Chess.com"]
[Date "2020.05.12"]
[Round "7"]
[White "MacDaddyMac"]
[Black "Shushik"]
[Result "1-0"]
[WhiteElo "2271"]
[BlackElo "2083"]
[TimeControl "180+1"]
[EndTime "11:17:01 PDT"]
[Termination "MacDaddyMac won by checkmate"]

1. e4 {[%clk 0:03:00.9]} 1... e5 {[%clk 0:02:59.9]} 2. Nf3 {[%clk 0:03:00.7]}
2... Nc6 {[%clk 0:02:58.9]} 3. Bb5 {[%clk 0:03:01.1]} 3... Nf6 {[%clk
0:02:58.6]} 4. Nc3 {[%clk 0:03:00.7]} 4... a6 {[%clk 0:02:58.2]} 5. Ba4 {[%clk
0:03:00.7]} 5... d6 {[%clk 0:02:56.6]} 6. d4 {[%clk 0:03:00.4]} 6... exd4 {[%clk
0:02:55]} 7. Nxd4 {[%clk 0:02:58.7]} 7... Bd7 {[%clk 0:02:54]} 8. Nxc6 {[%clk
0:02:56]} 8... bxc6 {[%clk 0:02:52.9]} 9. O-O {[%clk 0:02:55.3]} 9... Be7 {[%clk
0:02:53]} 10. Re1 {[%clk 0:02:49.2]} 10... O-O {[%clk 0:02:52.4]} 11. e5 {[%clk
0:02:49.7]} 11... dxe5 {[%clk 0:02:40.6]} 12. Rxe5 {[%clk 0:02:48.8]} 12... Bd6
{[%clk 0:02:40.8]} 13. Re1 {[%clk 0:02:47.3]} 13... Ng4 {[%clk 0:02:32.5]} 14.
h3 {[%clk 0:02:47.4]} 14... Ne5 {[%clk 0:01:16.2]} 15. Ne4 {[%clk 0:02:28.1]}
15... Nc4 {[%clk 0:00:34.2]} 16. Bb3 {[%clk 0:02:23.9]} 16... Na5 {[%clk
0:00:32.4]} 17. Nxd6 {[%clk 0:02:23]} 17... cxd6 {[%clk 0:00:31.5]} 18. Qxd6
{[%clk 0:02:22.9]} 18... Nb7 {[%clk 0:00:27.4]} 19. Qg3 {[%clk 0:02:21.7]} 19...
Qf6 {[%clk 0:00:23.3]} 20. Bf4 {[%clk 0:02:17.5]} 20... Rfe8 {[%clk 0:00:20.6]}
21. Be5 {[%clk 0:02:16.3]} 21... Qg6 {[%clk 0:00:20.5]} 22. Qxg6 {[%clk
0:02:15.7]} 22... hxg6 {[%clk 0:00:20.8]} 23. Rad1 {[%clk 0:02:15.3]} 23... Bf5
{[%clk 0:00:20]} 24. Bc3 {[%clk 0:02:12.6]} 24... Nc5 {[%clk 0:00:19.3]} 25. g4
{[%clk 0:02:09.6]} 25... Nxb3 {[%clk 0:00:19]} 26. gxf5 {[%clk 0:02:09.6]} 26...
Nc5 {[%clk 0:00:18.8]} 27. fxg6 {[%clk 0:02:09.2]} 27... fxg6 {[%clk 0:00:18.9]}
28. Rxe8+ {[%clk 0:02:09]} 28... Rxe8 {[%clk 0:00:19]} 29. Rd6 {[%clk
0:02:09.5]} 29... Re6 {[%clk 0:00:18.8]} 30. Rxe6 {[%clk 0:02:08.9]} 30... Nxe6
{[%clk 0:00:19]} 31. Kg2 {[%clk 0:02:07.9]} 31... Nf4+ {[%clk 0:00:19.2]} 32.
Kh2 {[%clk 0:02:07.5]} 32... Kf7 {[%clk 0:00:19]} 33. Be5 {[%clk 0:02:07.3]}
33... Nd5 {[%clk 0:00:18.1]} 34. c4 {[%clk 0:02:06.6]} 34... Nb6 {[%clk
0:00:17.5]} 35. b3 {[%clk 0:02:06.2]} 35... Nd7 {[%clk 0:00:17.6]} 36. Bd4
{[%clk 0:02:06.3]} 36... c5 {[%clk 0:00:17.2]} 37. Bc3 {[%clk 0:02:06.6]} 37...
Nb6 {[%clk 0:00:15.9]} 38. Kg3 {[%clk 0:02:06.3]} 38... Nc8 {[%clk 0:00:15.1]}
39. Be5 {[%clk 0:02:05.7]} 39... Ne7 {[%clk 0:00:14.5]} 40. Kg4 {[%clk
0:02:02.5]} 40... Nc6 {[%clk 0:00:14.1]} 41. Bd6 {[%clk 0:02:02.3]} 41... Nd4
{[%clk 0:00:13.3]} 42. Bxc5 {[%clk 0:02:01.6]} 42... Ne6 {[%clk 0:00:13.7]} 43.
Be3 {[%clk 0:02:01.5]} 43... Nc7 {[%clk 0:00:13.3]} 44. f4 {[%clk 0:02:01.2]}
44... Ne6 {[%clk 0:00:12.9]} 45. f5 {[%clk 0:02:01.3]} 45... gxf5+ {[%clk
0:00:13.1]} 46. Kxf5 {[%clk 0:02:02.2]} 46... g6+ {[%clk 0:00:13.3]} 47. Kg4
{[%clk 0:02:02.6]} 47... Kf6 {[%clk 0:00:13]} 48. h4 {[%clk 0:02:02.2]} 48... a5
{[%clk 0:00:12.1]} 49. Bb6 {[%clk 0:02:01]} 49... Nf8 {[%clk 0:00:09.6]} 50.
Bxa5 {[%clk 0:02:00.3]} 50... Nd7 {[%clk 0:00:09.5]} 51. Bd8+ {[%clk 0:02:00]}
51... Kf7 {[%clk 0:00:07]} 52. Kg5 {[%clk 0:02:00.1]} 52... Ne5 {[%clk
0:00:06.5]} 53. c5 {[%clk 0:01:58.4]} 53... Nf3+ {[%clk 0:00:06.1]} 54. Kh6
{[%clk 0:01:58.4]} 54... Ne5 {[%clk 0:00:05.6]} 55. b4 {[%clk 0:01:58]} 55...
Nc6 {[%clk 0:00:05.1]} 56. Ba5 {[%clk 0:01:56.8]} 56... Nd4 {[%clk 0:00:04.3]}
57. a4 {[%clk 0:01:54.1]} 57... Nf5+ {[%clk 0:00:04.4]} 58. Kg5 {[%clk
0:01:53.7]} 58... Nd4 {[%clk 0:00:04.6]} 59. b5 {[%clk 0:01:52.7]} 59... Ne6+
{[%clk 0:00:04.8]} 60. Kg4 {[%clk 0:01:52.8]} 60... Nxc5 {[%clk 0:00:05]} 61. b6
{[%clk 0:01:51]} 61... Nb7 {[%clk 0:00:03.5]} 62. Bb4 {[%clk 0:01:51]} 62... Nd8
{[%clk 0:00:03.8]} 63. a5 {[%clk 0:01:51.5]} 63... Nc6 {[%clk 0:00:04]} 64. b7
{[%clk 0:01:51.8]} 64... Nb8 {[%clk 0:00:03.2]} 65. a6 {[%clk 0:01:51.9]} 65...
Nxa6 {[%clk 0:00:03.3]} 66. Bd6 {[%clk 0:01:51.9]} 66... Ke6 {[%clk 0:00:03.1]}
67. b8=Q {[%clk 0:01:51.2]} 67... Nxb8 {[%clk 0:00:03.4]} 68. Bxb8 {[%clk
0:01:52.1]} 68... Kf6 {[%clk 0:00:03.4]} 69. Ba7 {[%clk 0:01:51.5]} 69... Kf7
{[%clk 0:00:03.2]} 70. Bd4 {[%clk 0:01:51.4]} 70... Ke6 {[%clk 0:00:02.8]} 71.
Kg5 {[%clk 0:01:52.3]} 71... Kf7 {[%clk 0:00:03]} 72. Kh6 {[%clk 0:01:52.1]}
72... g5 {[%clk 0:00:02.7]} 73. Kxg5 {[%clk 0:01:52.4]} 73... Kg8 {[%clk
0:00:02.7]} 74. h5 {[%clk 0:01:53.3]} 74... Kh7 {[%clk 0:00:02.6]} 75. h6 {[%clk
0:01:54.2]} 75... Kg8 {[%clk 0:00:02.5]} 76. Kh5 {[%clk 0:01:55.1]} 76... Kh7
{[%clk 0:00:02.6]} 77. Kg5 {[%clk 0:01:55.3]} 77... Kg8 {[%clk 0:00:02.3]} 78.
Kg6 {[%clk 0:01:55.8]} 78... Kf8 {[%clk 0:00:02.7]} 79. h7 {[%clk 0:01:56.7]}
79... Ke7 {[%clk 0:00:03.2]} 80. h8=Q {[%clk 0:01:57.6]} 80... Ke6 {[%clk
0:00:03.6]} 81. Be3 {[%clk 0:01:56.8]} 81... Kd7 {[%clk 0:00:04.5]} 82. Qd4+
{[%clk 0:01:56]} 82... Ke7 {[%clk 0:00:04.6]} 83. Qc5+ {[%clk 0:01:55.7]} 83...
Ke6 {[%clk 0:00:04.6]} 84. Qc6+ {[%clk 0:01:55.7]} 84... Ke5 {[%clk 0:00:04.6]}
85. Bf4+ {[%clk 0:01:56.1]} 85... Kxf4 {[%clk 0:00:04.3]} 86. Qd5 {[%clk
0:01:56.3]} 86... Ke3 {[%clk 0:00:04.1]} 87. Kf5 {[%clk 0:01:55.5]} 87... Ke2
{[%clk 0:00:04.2]} 88. Qd4 {[%clk 0:01:55.5]} 88... Kf3 {[%clk 0:00:04]} 89. Kg5
{[%clk 0:01:55]} 89... Ke2 {[%clk 0:00:03.7]} 90. Qc3 {[%clk 0:01:55]} 90... Kd1
{[%clk 0:00:03.4]} 91. Qb2 {[%clk 0:01:55]} 91... Ke1 {[%clk 0:00:03.3]} 92. Kg4
{[%clk 0:01:55.9]} 92... Kf1 {[%clk 0:00:03.3]} 93. Kf3 {[%clk 0:01:56.8]} 93...
Ke1 {[%clk 0:00:03.5]} 94. Qc1# {[%clk 0:01:56.5]} 1-0

[Event "*** Titled Tuesday Blitz"]
[Site "Chess.com"]
[Date "2020.05.12"]
[Round "7"]
[White "axvesik"]
[Black "DishonorOnYourCow"]
[Result "1-0"]
[WhiteElo "2515"]
[BlackElo "2340"]
[TimeControl "180+1"]
[EndTime "11:17:02 PDT"]
[Termination "axvesik won on time"]

1. e4 {[%clk 0:02:57.2]} 1... e5 {[%clk 0:02:57.5]} 2. Nf3 {[%clk 0:02:55.9]}
2... Nc6 {[%clk 0:02:57.2]} 3. Bb5 {[%clk 0:02:56.2]} 3... Nf6 {[%clk
0:02:56.5]} 4. d3 {[%clk 0:02:54.2]} 4... Bc5 {[%clk 0:02:55.9]} 5. O-O {[%clk
0:02:53.1]} 5... d6 {[%clk 0:02:54.2]} 6. c3 {[%clk 0:02:51.9]} 6... O-O {[%clk
0:02:50.5]} 7. Bg5 {[%clk 0:02:33.4]} 7... h6 {[%clk 0:02:27]} 8. Bh4 {[%clk
0:02:29]} 8... g5 {[%clk 0:02:25.7]} 9. Nxg5 {[%clk 0:02:11.3]} 9... hxg5 {[%clk
0:02:25.4]} 10. Bxg5 {[%clk 0:02:11.5]} 10... Qe7 {[%clk 0:02:18.2]} 11. Qf3
{[%clk 0:01:46.9]} 11... Kg7 {[%clk 0:02:12.5]} 12. Nd2 {[%clk 0:01:46.1]} 12...
Nb8 {[%clk 0:01:22.9]} 13. Rfe1 {[%clk 0:01:26.3]} 13... c6 {[%clk 0:01:18.7]}
14. Ba4 {[%clk 0:01:25.6]} 14... Nbd7 {[%clk 0:01:07.7]} 15. Nf1 {[%clk
0:01:25.3]} 15... Qe6 {[%clk 0:00:56.1]} 16. h3 {[%clk 0:01:04.1]} 16... Nh7
{[%clk 0:00:51.3]} 17. Bh4 {[%clk 0:01:02.8]} 17... Qg6 {[%clk 0:00:45.7]} 18.
Ng3 {[%clk 0:00:55.3]} 18... Nb6 {[%clk 0:00:27.3]} 19. Bc2 {[%clk 0:00:46.9]}
19... Qh6 {[%clk 0:00:24.5]} 20. Nh5+ {[%clk 0:00:20.5]} 20... Kh8 {[%clk
0:00:18.1]} 21. b4 {[%clk 0:00:20.4]} 21... f5 {[%clk 0:00:15.9]} 22. bxc5
{[%clk 0:00:16]} 22... fxe4 {[%clk 0:00:15.8]} 23. Qxe4 {[%clk 0:00:16.4]} 23...
Qxh5 {[%clk 0:00:15.3]} 24. cxb6 {[%clk 0:00:16.2]} 24... axb6 {[%clk
0:00:15.5]} 25. Bg3 {[%clk 0:00:15.7]} 25... Bf5 {[%clk 0:00:15.5]} 26. Qe3
{[%clk 0:00:15.5]} 26... Rg8 {[%clk 0:00:15.3]} 27. Rad1 {[%clk 0:00:15.1]}
27... Rae8 {[%clk 0:00:13.7]} 28. Bb3 {[%clk 0:00:15.5]} 28... Rgf8 {[%clk
0:00:13.2]} 29. Rd2 {[%clk 0:00:14.4]} 29... Qg5 {[%clk 0:00:13]} 30. Qxg5
{[%clk 0:00:13.5]} 30... Nxg5 {[%clk 0:00:13.9]} 31. d4 {[%clk 0:00:14.1]} 31...
e4 {[%clk 0:00:12.5]} 32. Bxd6 {[%clk 0:00:13.7]} 32... Rf6 {[%clk 0:00:10.9]}
33. Be5 {[%clk 0:00:14.1]} 33... Nh7 {[%clk 0:00:08.5]} 34. Bxf6+ {[%clk
0:00:14]} 34... Nxf6 {[%clk 0:00:09.4]} 35. Rde2 {[%clk 0:00:14.4]} 35... Kg7
{[%clk 0:00:09.1]} 36. f3 {[%clk 0:00:14.8]} 36... c5 {[%clk 0:00:05.8]} 37.
fxe4 {[%clk 0:00:15.1]} 37... Bxe4 {[%clk 0:00:05.1]} 38. dxc5 {[%clk
0:00:14.9]} 38... bxc5 {[%clk 0:00:04.8]} 39. Bc2 {[%clk 0:00:15.1]} 39... Bc6
{[%clk 0:00:04.6]} 40. Rxe8 {[%clk 0:00:16]} 40... Nxe8 {[%clk 0:00:04.9]} 41.
Re7+ {[%clk 0:00:15.8]} 41... Kf6 {[%clk 0:00:05.2]} 42. Re2 {[%clk 0:00:15.9]}
42... Nd6 {[%clk 0:00:05.3]} 43. g4 {[%clk 0:00:15.6]} 43... Nc4 {[%clk
0:00:05.1]} 44. Kf2 {[%clk 0:00:15.4]} 44... Ne5 {[%clk 0:00:04.8]} 45. Kg3
{[%clk 0:00:15.7]} 45... Nf7 {[%clk 0:00:04.1]} 46. h4 {[%clk 0:00:16.1]} 46...
Ne5 {[%clk 0:00:04]} 47. g5+ {[%clk 0:00:16.5]} 47... Ke6 {[%clk 0:00:02.6]} 48.
Bb3+ {[%clk 0:00:16.2]} 48... Kd6 {[%clk 0:00:02.7]} 49. h5 {[%clk 0:00:16.7]}
49... c4 {[%clk 0:00:02.9]} 50. Bc2 {[%clk 0:00:16.6]} 50... Nf7 {[%clk
0:00:01.2]} 51. g6 {[%clk 0:00:16.7]} 51... Ne5 {[%clk 0:00:01.1]} 52. Rxe5
{[%clk 0:00:16.4]} 1-0

[Event "*** Titled Tuesday Blitz"]
[Site "Chess.com"]
[Date "2020.05.12"]
[Round "7"]
[White "rst2003"]
[Black "Batsai"]
[Result "1-0"]
[WhiteElo "2456"]
[BlackElo "2266"]
[TimeControl "180+1"]
[EndTime "11:17:05 PDT"]
[Termination "rst2003 won by resignation"]

1. b3 {[%clk 0:03:00.9]} 1... Nf6 {[%clk 0:02:59.3]} 2. Bb2 {[%clk 0:03:00.6]}
2... e6 {[%clk 0:03:00.2]} 3. Nf3 {[%clk 0:03:00.5]} 3... d5 {[%clk 0:03:00.7]}
4. e3 {[%clk 0:03:01.3]} 4... Be7 {[%clk 0:03:01.1]} 5. d4 {[%clk 0:03:02]} 5...
O-O {[%clk 0:03:01.3]} 6. c4 {[%clk 0:03:02.6]} 6... b6 {[%clk 0:02:53.6]} 7.
Nc3 {[%clk 0:03:02.2]} 7... Bb7 {[%clk 0:02:53.1]} 8. Be2 {[%clk 0:03:02.6]}
8... a6 {[%clk 0:02:52.1]} 9. O-O {[%clk 0:03:03]} 9... Nbd7 {[%clk 0:02:51.6]}
10. Rc1 {[%clk 0:03:03.5]} 10... dxc4 {[%clk 0:02:49.1]} 11. bxc4 {[%clk
0:03:03]} 11... c5 {[%clk 0:02:49.5]} 12. d5 {[%clk 0:03:02.7]} 12... exd5
{[%clk 0:02:46.9]} 13. cxd5 {[%clk 0:03:03.6]} 13... Bd6 {[%clk 0:02:46.6]} 14.
a4 {[%clk 0:02:54.9]} 14... Re8 {[%clk 0:02:41.5]} 15. Qb3 {[%clk 0:02:47.9]}
15... Qe7 {[%clk 0:02:24.6]} 16. Rfd1 {[%clk 0:02:42.8]} 16... h6 {[%clk
0:02:12.9]} 17. h3 {[%clk 0:02:38.5]} 17... Rab8 {[%clk 0:02:11.7]} 18. Ba1
{[%clk 0:02:30.7]} 18... Ne5 {[%clk 0:01:51.9]} 19. e4 {[%clk 0:02:19.2]} 19...
c4 {[%clk 0:01:37.2]} 20. Qxb6 {[%clk 0:02:06.8]} 20... Bc5 {[%clk 0:01:37.3]}
21. d6 {[%clk 0:01:50.1]} 21... Bxb6 {[%clk 0:01:32.2]} 22. dxe7 {[%clk
0:01:48.7]} 22... Nxf3+ {[%clk 0:01:26.2]} 23. gxf3 {[%clk 0:01:46.6]} 23...
Rxe7 {[%clk 0:01:18]} 24. Bxc4 {[%clk 0:01:45.3]} 24... Rc8 {[%clk 0:01:14.6]}
25. Ba2 {[%clk 0:01:30.2]} 25... Rec7 {[%clk 0:00:59]} 26. Rb1 {[%clk
0:01:19.4]} 26... Ba7 {[%clk 0:00:58.5]} 27. Kg2 {[%clk 0:01:04.9]} 27... Nh5
{[%clk 0:00:57.1]} 28. Ne2 {[%clk 0:01:01.9]} 28... Ba8 {[%clk 0:00:45.4]} 29.
Bb3 {[%clk 0:00:46.4]} 29... Kh8 {[%clk 0:00:36.7]} 30. Be5 {[%clk 0:00:44]}
30... Re7 {[%clk 0:00:28.2]} 31. Bd6 {[%clk 0:00:42.5]} 31... Rd7 {[%clk
0:00:20.2]} 32. Ng3 {[%clk 0:00:35.2]} 32... Nxg3 {[%clk 0:00:17.4]} 33. Kxg3
{[%clk 0:00:31.5]} 33... Rxd6 {[%clk 0:00:09.8]} 34. Rxd6 {[%clk 0:00:30.5]}
34... Bb8 {[%clk 0:00:10.7]} 35. e5 {[%clk 0:00:30.7]} 35... Bxd6 {[%clk
0:00:09.6]} 36. exd6 {[%clk 0:00:31.6]} 36... Rd8 {[%clk 0:00:08.8]} 37. Bxf7
{[%clk 0:00:30]} 37... g5 {[%clk 0:00:04.9]} 38. Rd1 {[%clk 0:00:20.8]} 38...
Kg7 {[%clk 0:00:04.5]} 39. Bc4 {[%clk 0:00:19]} 39... Bc6 {[%clk 0:00:02.6]} 40.
a5 {[%clk 0:00:18.4]} 40... Rf8 {[%clk 0:00:02.2]} 41. Rd3 {[%clk 0:00:17.3]}
41... Rd8 {[%clk 0:00:01.3]} 42. Bxa6 {[%clk 0:00:16.9]} 42... Kf6 {[%clk
0:00:01.5]} 43. Bc4 {[%clk 0:00:16.9]} 43... Ke5 {[%clk 0:00:01.3]} 44. a6
{[%clk 0:00:17.1]} 44... Ra8 {[%clk 0:00:01.1]} 45. d7 {[%clk 0:00:16.4]} 45...
Rd8 {[%clk 0:00:01.2]} 46. a7 {[%clk 0:00:16.9]} 46... Ba8 {[%clk 0:00:01.5]}
47. Kg4 {[%clk 0:00:15.7]} 47... Kf6 {[%clk 0:00:02.4]} 48. f4 {[%clk
0:00:15.5]} 48... Ke7 {[%clk 0:00:03.3]} 49. fxg5 {[%clk 0:00:15.6]} 49... hxg5
{[%clk 0:00:03.8]} 50. Kxg5 {[%clk 0:00:16.5]} 50... Rg8+ {[%clk 0:00:03.8]} 51.
Bxg8 {[%clk 0:00:15.6]} 1-0

[Event "*** Titled Tuesday Blitz"]
[Site "Chess.com"]
[Date "2020.05.12"]
[Round "7"]
[White "ZoltanChef"]
[Black "ChronicUnhappiness"]
[Result "0-1"]
[WhiteElo "2123"]
[BlackElo "2319"]
[TimeControl "180+1"]
[EndTime "11:17:06 PDT"]
[Termination "ChronicUnhappiness won on time"]

1. d4 {[%clk 0:03:00.7]} 1... Nf6 {[%clk 0:02:59.5]} 2. Nc3 {[%clk 0:02:54.5]}
2... d6 {[%clk 0:02:58.4]} 3. Bg5 {[%clk 0:02:50.7]} 3... g6 {[%clk 0:02:55.4]}
4. Bxf6 {[%clk 0:02:49.3]} 4... exf6 {[%clk 0:02:54.9]} 5. h4 {[%clk 0:02:49.9]}
5... h5 {[%clk 0:02:53.2]} 6. e3 {[%clk 0:02:49.8]} 6... c6 {[%clk 0:02:41.6]}
7. Be2 {[%clk 0:02:41]} 7... d5 {[%clk 0:02:40]} 8. Bf3 {[%clk 0:02:40.9]} 8...
Bd6 {[%clk 0:02:37.7]} 9. Nge2 {[%clk 0:02:40.1]} 9... O-O {[%clk 0:02:37.2]}
10. g3 {[%clk 0:02:39]} 10... Re8 {[%clk 0:02:29.7]} 11. Qd2 {[%clk 0:02:27.6]}
11... Nd7 {[%clk 0:02:28.4]} 12. O-O {[%clk 0:02:22.4]} 12... Nf8 {[%clk
0:02:24.9]} 13. Rac1 {[%clk 0:02:21.5]} 13... f5 {[%clk 0:02:22.6]} 14. Nf4
{[%clk 0:02:18.7]} 14... Ne6 {[%clk 0:02:21.5]} 15. Nce2 {[%clk 0:02:12.9]}
15... a5 {[%clk 0:01:57.8]} 16. c4 {[%clk 0:02:06.6]} 16... dxc4 {[%clk
0:01:57.7]} 17. Rxc4 {[%clk 0:02:06.2]} 17... Nxf4 {[%clk 0:01:50.1]} 18. Nxf4
{[%clk 0:02:05.3]} 18... Bxf4 {[%clk 0:01:50.1]} 19. exf4 {[%clk 0:02:05.6]}
19... Be6 {[%clk 0:01:47.7]} 20. Rc5 {[%clk 0:02:05.8]} 20... Bxa2 {[%clk
0:01:46.4]} 21. Ra1 {[%clk 0:01:59.8]} 21... Bd5 {[%clk 0:01:40]} 22. Bxd5
{[%clk 0:01:58.1]} 22... cxd5 {[%clk 0:01:40.9]} 23. Rcxa5 {[%clk 0:01:56.4]}
23... Rc8 {[%clk 0:01:09.8]} 24. b4 {[%clk 0:01:33.6]} 24... Rc4 {[%clk
0:01:07.9]} 25. Rc5 {[%clk 0:01:29.4]} 25... b6 {[%clk 0:01:05.7]} 26. Rxc4
{[%clk 0:01:25.1]} 26... dxc4 {[%clk 0:01:05.1]} 27. d5 {[%clk 0:01:19.4]} 27...
Qd6 {[%clk 0:01:03.9]} 28. b5 {[%clk 0:01:13.1]} 28... Rc8 {[%clk 0:01:01.4]}
29. Qd4 {[%clk 0:01:06.1]} 29... c3 {[%clk 0:00:43.4]} 30. Rc1 {[%clk
0:01:00.6]} 30... c2 {[%clk 0:00:42.8]} 31. Qd2 {[%clk 0:00:36.2]} 31... Rc5
{[%clk 0:00:28.3]} 32. Rxc2 {[%clk 0:00:34.6]} 32... Rxd5 {[%clk 0:00:28.3]} 33.
Qe3 {[%clk 0:00:26.6]} 33... Rd1+ {[%clk 0:00:26.3]} 34. Kh2 {[%clk 0:00:25]}
34... Qd5 {[%clk 0:00:26.6]} 35. f3 {[%clk 0:00:15.9]} 35... Qxb5 {[%clk
0:00:16.7]} 36. Rc8+ {[%clk 0:00:13.5]} 36... Kh7 {[%clk 0:00:16.3]} 37. Rc7
{[%clk 0:00:05.5]} 37... Qb3 {[%clk 0:00:12.8]} 0-1